[Event "FTX Road to Miami Prelims 2022"]
[Site "Online"]
[Date "2022.07.04"]
[Round "8.5"]
[White "Shankland, Sam"]
[Black "Giri, Anish"]
[Result "0-1"]
[ECO "B90"]
[WhiteElo "2720"]
[BlackElo "2760"]
[Annotator "ChessBase"]
[PlyCount "74"]
[EventDate "2022.07.10"]
[EventType "tourn"]
[EventCountry "NET"]
[SourceTitle "playchess.com"]
[Source "ChessBase"]
[SourceQuality "1"]
[TimeControl "40/5400+30:1800+30"]

1. e4 {[%emt 1:15:40]} c5 {[%emt 1:15:40]} 2. Nf3 {[%emt 0:00:23]} d6 {[%emt 0:00:21]} 3. d4 {[%emt 0:00:21]} cxd4 {[%emt 0:00:20]} 4. Nxd4 {[%emt 0:00:20]} Nf6 {[%emt 0:00:20]} 5. Nc3 {[%emt 0:00:21]} a6 {[%emt 0:00:21]} 6. Be3 {[%emt 0:00:22]} e5 {[%emt 0:00:24]} 7. Nb3 {[%emt 0:00:21]} Be7 {[%emt 0:00:21]} 8. h3 {[%emt 0:00:21]} Be6 {[%emt 0:01:20]} 9. Qf3 {[%emt 0:00:24]} O-O {[%emt 0:00:27]} 10. g4 {[%emt 0:00:23]} a5 {[%emt 0:00:21]} 11. a4 {[%emt 0:00:22]} Na6 {[%emt 0:00:22]} 12. O-O-O {[%emt 0:00:21]} Rc8 {[%emt 0:00:20]} 13. Bb5 {[%emt 0:00:22]} Rxc3 {[%emt 0:00:23]} 14. bxc3 {[%emt 0:00:22]} Nd7 {[%emt 0:02:03]} 15. Kb1 {[%emt 0:02:59]} Nc7 {[%emt 0:00:27]} 16. Qe2 {[%emt 0:01:10]} Nxb5 {[%emt 0:01:30]} 17. Qxb5 {[%emt 0:00:23]} Qc7 {[%emt 0:00:30]} 18. Qxa5 {[%emt 0:01:33]} b6 {[%emt 0:00:27]} 19. Qb4 {[%emt 0:00:54]} Ra8 {[%emt 0:00:32]} 20. Rd5 {[%emt 0:01:54]} Nc5 {[%emt 0:01:29]} 21. Bxc5 {[%emt 0:02:56]} bxc5 {[%emt 0:02:31]} 22. Qc4 {[%emt 0:00:23]} Bd7 {[%emt 0:01:38]} 23. a5 {[%emt 0:01:04]} Rb8 {[%emt 0:00:46]} 24. Qe2 {[%emt 0:00:28]} c4 {[%emt 0:01:09]} 25. Kb2 {[%emt 0:00:23]} Be6 {[%emt 0:00:43]} 26. Ra1 {[%emt 0:01:10]} Bxd5 {[%emt 0:02:45]} 27. exd5 {[%emt 0:00:23]} cxb3 {[%emt 0:00:49]} 28. cxb3 {[%emt 0:00:23]} e4 {[%emt 0:00:22]} 29. Ra4 {[%emt 0:03:39]} Bf6 {[%emt 0:00:31]} 30. Qc4 {[%emt 0:00:23]} Qa7 {[%emt 0:00:45]} 31. Ka3 {[%emt 0:01:48]} Qxf2 {[%emt 0:01:30]} 32. Rb4 {[%emt 0:00:24]} Rf8 {[%emt 0:00:42]} 33. Qc7 {[%emt 0:01:02]} Qe1 {[%emt 0:00:46]} 34. Ka4 {[%emt 0:00:53]} Bxc3 {[%emt 0:00:32]} 35. Rb7 {[%emt 0:01:11]} e3 {[%emt 0:00:54]} 36. a6 {[%emt 0:00:25]} Qa1+ {[%emt 0:01:18]} 37. Kb5 {[%emt 0:01:38]} Qf1+ {[%emt 0:00:26]} 0-1

[Event "FTX Road to Miami Prelims 2022"]
[Site "Online"]
[Date "2022.07.04"]
[Round "8.6"]
[White "Wei, Yi"]
[Black "Ju, Wenjun"]
[Result "0-1"]
[ECO "A13"]
[WhiteElo "2727"]
[BlackElo "2560"]
[Annotator "ChessBase"]
[PlyCount "102"]
[EventDate "2022.07.10"]
[EventType "tourn"]
[EventCountry "NET"]
[SourceTitle "playchess.com"]
[Source "ChessBase"]
[SourceQuality "1"]
[TimeControl "40/5400+30:1800+30"]

1. c4 {[%emt 1:15:40]} Nf6 {[%emt 1:15:40]} 2. g3 {[%emt 0:00:26]} e6 {[%emt 0:00:21]} 3. Bg2 {[%emt 0:00:21]} d5 {[%emt 0:00:21]} 4. Nf3 {[%emt 0:00:21]} dxc4 {[%emt 0:00:37]} 5. O-O {[%emt 0:00:22]} Nbd7 {[%emt 0:01:08]} 6. Qc2 {[%emt 0:00:57]} Nb6 {[%emt 0:00:49]} 7. a4 {[%emt 0:01:30]} a5 {[%emt 0:00:22]} 8. Na3 {[%emt 0:00:34]} Bxa3 {[%emt 0:00:25]} 9. Rxa3 {[%emt 0:00:21]} O-O {[%emt 0:00:30]} 10. e4 {[%emt 0:00:21]} Bd7 {[%emt 0:01:20]} 11. d4 {[%emt 0:02:28]} cxd3 {[%emt 0:00:57]} 12. Rxd3 {[%emt 0:00:23]} Nxe4 {[%emt 0:04:20]} 13. Rd4 {[%emt 0:06:37]} Nf6 {[%emt 0:02:28]} 14. Ne5 {[%emt 0:00:37]} Nfd5 {[%emt 0:01:01]} 15. Rh4 {[%emt 0:00:58]} f5 {[%emt 0:00:36]} 16. b3 {[%emt 0:01:02]} Qe7 {[%emt 0:01:03]} 17. Re1 {[%emt 0:00:30]} Rfd8 {[%emt 0:01:32]} 18. Bb2 {[%emt 0:01:09]} Be8 {[%emt 0:00:30]} 19. Bd4 {[%emt 0:01:47]} Rac8 {[%emt 0:01:13]} 20. Nd3 {[%emt 0:01:01]} Bc6 {[%emt 0:01:40]} 21. Qe2 {[%emt 0:01:13]} Nf6 {[%emt 0:02:18]} 22. Bxc6 {[%emt 0:00:41]} bxc6 {[%emt 0:00:20]} 23. Ne5 {[%emt 0:00:39]} Qe8 {[%emt 0:00:27]} 24. Bc3 {[%emt 0:00:42]} Rd5 {[%emt 0:00:41]} 25. f3 {[%emt 0:00:34]} Rcd8 {[%emt 0:01:17]} 26. g4 {[%emt 0:00:27]} h6 {[%emt 0:01:01]} 27. Qc2 {[%emt 0:01:08]} Qe7 {[%emt 0:00:42]} 28. gxf5 {[%emt 0:00:53]} Qc5+ {[%emt 0:00:22]} 29. Kh1 {[%emt 0:00:21]} exf5 {[%emt 0:00:43]} 30. Qxf5 {[%emt 0:00:53]} Re8 {[%emt 0:00:21]} 31. Rg1 {[%emt 0:00:50]} Rdxe5 {[%emt 0:00:27]} 32. Bxe5 {[%emt 0:00:25]} Rxe5 {[%emt 0:00:29]} 33. Qd3 {[%emt 0:00:34]} Rd5 {[%emt 0:00:42]} 34. Qe2 {[%emt 0:00:26]} Re5 {[%emt 0:00:23]} 35. Qd2 {[%emt 0:00:24]} Qe3 {[%emt 0:00:38]} 36. Qxe3 {[%emt 0:00:36]} Rxe3 {[%emt 0:00:20]} 37. b4 {[%emt 0:00:24]} axb4 {[%emt 0:00:29]} 38. a5 {[%emt 0:00:39]} Nbd5 {[%emt 0:00:23]} 39. Ra1 {[%emt 0:00:21]} c5 {[%emt 0:00:42]} 40. Rc4 {[%emt 0:00:36]} Nd7 {[%emt 0:00:23]} 41. Re4 {[%emt 0:30:34]} Rxf3 {[%emt 0:30:28]} 42. Re6 {[%emt 0:00:34]} b3 {[%emt 0:00:28]} 43. a6 {[%emt 0:00:30]} Rf8 {[%emt 0:00:28]} 44. Rc6 {[%emt 0:00:28]} Nc3 {[%emt 0:00:39]} 45. Rxc7 {[%emt 0:00:31]} b2 {[%emt 0:00:22]} 46. Rg1 {[%emt 0:00:22]} b1=Q {[%emt 0:00:28]} 47. Rxb1 {[%emt 0:00:21]} Nxb1 {[%emt 0:00:20]} 48. Rxd7 {[%emt 0:00:21]} Ra8 {[%emt 0:00:21]} 49. a7 {[%emt 0:00:21]} Na3 {[%emt 0:00:34]} 50. Rb7 {[%emt 0:00:26]} Kh7 {[%emt 0:00:21]} 51. Kg2 {[%emt 0:00:28]} c4 {[%emt 0:00:23]} 0-1

[Event "FTX Road to Miami Prelims 2022"]
[Site "Online"]
[Date "2022.07.04"]
[Round "8.7"]
[White "Dominguez Perez, Leinier"]
[Black "Erigaisi Arjun"]
[Result "0-1"]
[ECO "B45"]
[WhiteElo "2754"]
[BlackElo "2689"]
[Annotator "ChessBase"]
[PlyCount "88"]
[EventDate "2022.07.10"]
[EventType "tourn"]
[EventCountry "NET"]
[SourceTitle "playchess.com"]
[Source "ChessBase"]
[SourceQuality "1"]
[TimeControl "40/5400+30:1800+30"]

1. e4 {[%emt 1:15:40]} c5 {[%emt 1:15:40]} 2. Nf3 {[%emt 0:00:22]} e6 {[%emt 0:00:22]} 3. d4 {[%emt 0:00:20]} cxd4 {[%emt 0:00:20]} 4. Nxd4 {[%emt 0:00:21]} Nf6 {[%emt 0:00:20]} 5. Nc3 {[%emt 0:00:21]} Nc6 {[%emt 0:00:21]} 6. Ndb5 {[%emt 0:00:21]} Bb4 {[%emt 0:00:22]} 7. a3 {[%emt 0:00:28]} Bxc3+ {[%emt 0:00:21]} 8. Nxc3 {[%emt 0:00:20]} d5 {[%emt 0:00:21]} 9. exd5 {[%emt 0:00:24]} exd5 {[%emt 0:00:20]} 10. Bd3 {[%emt 0:00:21]} O-O {[%emt 0:00:21]} 11. O-O {[%emt 0:00:21]} Bg4 {[%emt 0:00:21]} 12. f3 {[%emt 0:00:24]} Bh5 {[%emt 0:00:20]} 13. Ne2 {[%emt 0:00:41]} Qb6+ {[%emt 0:00:48]} 14. Kh1 {[%emt 0:00:43]} d4 {[%emt 0:00:23]} 15. Nf4 {[%emt 0:00:59]} Bg6 {[%emt 0:00:25]} 16. Nxg6 {[%emt 0:00:22]} hxg6 {[%emt 0:00:20]} 17. f4 {[%emt 0:01:12]} Ne7 {[%emt 0:00:55]} 18. Qf3 {[%emt 0:01:05]} Rfe8 {[%emt 0:00:50]} 19. Bd2 {[%emt 0:01:15]} Nf5 {[%emt 0:00:23]} 20. a4 {[%emt 0:02:14]} a6 {[%emt 0:03:43]} 21. a5 {[%emt 0:00:39]} Qc7 {[%emt 0:00:23]} 22. Rfe1 {[%emt 0:02:09]} Rac8 {[%emt 0:01:20]} 23. g3 {[%emt 0:01:58]} Nd7 {[%emt 0:01:29]} 24. b4 {[%emt 0:01:00]} Nf6 {[%emt 0:00:45]} 25. Rab1 {[%emt 0:01:07]} Nd6 {[%emt 0:00:29]} 26. Rxe8+ {[%emt 0:00:51]} Rxe8 {[%emt 0:00:20]} 27. Re1 {[%emt 0:00:21]} Rd8 {[%emt 0:00:39]} 28. h4 {[%emt 0:02:14]} Nc4 {[%emt 0:01:09]} 29. Bc1 {[%emt 0:00:22]} Nd5 {[%emt 0:00:21]} 30. f5 {[%emt 0:01:20]} Ne5 {[%emt 0:00:40]} 31. Rxe5 {[%emt 0:02:34]} Qxe5 {[%emt 0:00:20]} 32. Bg5 {[%emt 0:00:23]} Qe1+ {[%emt 0:01:47]} 33. Kh2 {[%emt 0:00:25]} f6 {[%emt 0:00:21]} 34. Bf4 {[%emt 0:02:14]} gxf5 {[%emt 0:00:27]} 35. Bxf5 {[%emt 0:00:37]} Nxf4 {[%emt 0:00:23]} 36. Qxf4 {[%emt 0:00:25]} Qe3 {[%emt 0:02:41]} 37. Qf1 {[%emt 0:00:23]} Qd2+ {[%emt 0:00:31]} 38. Kh3 {[%emt 0:00:21]} Qxb4 {[%emt 0:00:21]} 39. Be6+ {[%emt 0:01:02]} Kf8 {[%emt 0:00:25]} 40. Qf5 {[%emt 0:00:21]} Qd6 {[%emt 0:00:58]} 41. Bb3 {[%emt 0:30:40]} Qd7 {[%emt 0:31:31]} 42. Be6 {[%emt 0:00:24]} Qb5 {[%emt 0:00:20]} 43. Qf3 {[%emt 0:01:04]} Qc6 {[%emt 0:00:38]} 44. Qf5 {[%emt 0:00:44]} Ke7 {[%emt 0:01:03]} 0-1

[Event "FTX Road to Miami Prelims 2022"]
[Site "Online"]
[Date "2022.07.04"]
[Round "8.8"]
[White "Duda, Jan-Krzysztof"]
[Black "Mamedyarov, Shakhriyar"]
[Result "1/2-1/2"]
[ECO "C54"]
[WhiteElo "2750"]
[BlackElo "2759"]
[Annotator "ChessBase"]
[PlyCount "83"]
[EventDate "2022.07.10"]
[EventType "tourn"]
[EventCountry "NET"]
[SourceTitle "playchess.com"]
[Source "ChessBase"]
[SourceQuality "1"]
[TimeControl "40/5400+30:1800+30"]

1. e4 {[%emt 1:15:40]} e5 {[%emt 1:15:40]} 2. Nf3 {[%emt 0:00:22]} Nc6 {[%emt 0:00:21]} 3. Bc4 {[%emt 0:00:22]} Bc5 {[%emt 0:00:21]} 4. c3 {[%emt 0:00:21]} Nf6 {[%emt 0:00:21]} 5. d3 {[%emt 0:00:21]} O-O {[%emt 0:00:22]} 6. O-O {[%emt 0:00:21]} d5 {[%emt 0:00:21]} 7. exd5 {[%emt 0:00:20]} Nxd5 {[%emt 0:00:21]} 8. a4 {[%emt 0:00:21]} a5 {[%emt 0:00:25]} 9. Re1 {[%emt 0:00:25]} Bg4 {[%emt 0:00:25]} 10. Nbd2 {[%emt 0:00:36]} Nb6 {[%emt 0:00:42]} 11. Bb5 {[%emt 0:00:36]} Bd6 {[%emt 0:00:34]} 12. Ne4 {[%emt 0:00:33]} Na7 {[%emt 0:00:24]} 13. h3 {[%emt 0:00:45]} Bh5 {[%emt 0:00:35]} 14. d4 {[%emt 0:00:26]} Nxb5 {[%emt 0:00:50]} 15. axb5 {[%emt 0:00:26]} exd4 {[%emt 0:00:33]} 16. Nxd6 {[%emt 0:00:26]} Qxd6 {[%emt 0:00:25]} 17. Qxd4 {[%emt 0:00:29]} Qxd4 {[%emt 0:00:32]} 18. Nxd4 {[%emt 0:00:23]} Bg6 {[%emt 0:00:51]} 19. f4 {[%emt 0:03:52]} f5 {[%emt 0:03:55]} 20. Kf2 {[%emt 0:01:20]} Nd5 {[%emt 0:02:30]} 21. Kf3 {[%emt 0:03:19]} Bf7 {[%emt 0:04:05]} 22. Re5 {[%emt 0:01:39]} g6 {[%emt 0:00:29]} 23. Bd2 {[%emt 0:00:41]} Nb6 {[%emt 0:00:40]} 24. b3 {[%emt 0:01:10]} a4 {[%emt 0:01:50]} 25. bxa4 {[%emt 0:00:25]} Rxa4 {[%emt 0:00:31]} 26. Rxa4 {[%emt 0:00:51]} Nxa4 {[%emt 0:00:20]} 27. g4 {[%emt 0:02:12]} fxg4+ {[%emt 0:00:34]} 28. hxg4 {[%emt 0:00:20]} Re8 {[%emt 0:00:53]} 29. Rxe8+ {[%emt 0:00:22]} Bxe8 {[%emt 0:00:20]} 30. f5 {[%emt 0:00:21]} gxf5 {[%emt 0:00:35]} 31. gxf5 {[%emt 0:00:20]} Nb6 {[%emt 0:00:24]} 32. Bf4 {[%emt 0:00:43]} Nd5 {[%emt 0:00:40]} 33. c4 {[%emt 0:00:37]} Nb6 {[%emt 0:00:29]} 34. Bxc7 {[%emt 0:02:06]} Nxc4 {[%emt 0:00:21]} 35. Ke4 {[%emt 0:00:23]} b6 {[%emt 0:00:38]} 36. Kd5 {[%emt 0:00:45]} Na3 {[%emt 0:00:22]} 37. Bxb6 {[%emt 0:00:21]} Nxb5 {[%emt 0:00:20]} 38. Nxb5 {[%emt 0:00:22]} Bxb5 {[%emt 0:00:20]} 39. Ke5 {[%emt 0:00:23]} Bd7 {[%emt 0:00:22]} 40. Be3 {[%emt 0:00:23]} h6 {[%emt 0:00:22]} 41. Bxh6 {[%emt 0:30:21]} Bxf5 {[%emt 0:30:21]} 42. Kxf5 {[%emt 0:00:21]} 1/2-1/2

[Event "FTX Road to Miami Prelims 2022"]
[Site "Online"]
[Date "2022.07.04"]
[Round "9.1"]
[White "Mamedyarov, Shakhriyar"]
[Black "Niemann, Hans Moke"]
[Result "1/2-1/2"]
[ECO "D50"]
[WhiteElo "2759"]
[BlackElo "2688"]
[Annotator "ChessBase"]
[PlyCount "97"]
[EventDate "2022.07.10"]
[EventType "tourn"]
[EventCountry "NET"]
[SourceTitle "playchess.com"]
[Source "ChessBase"]
[SourceQuality "1"]
[TimeControl "40/5400+30:1800+30"]

1. d4 {[%emt 1:15:40]} Nf6 {[%emt 1:15:40]} 2. c4 {[%emt 0:00:25]} e6 {[%emt 0:00:21]} 3. Nf3 {[%emt 0:00:24]} d5 {[%emt 0:00:21]} 4. Nc3 {[%emt 0:00:23]} c5 {[%emt 0:00:21]} 5. cxd5 {[%emt 0:00:26]} cxd4 {[%emt 0:00:21]} 6. Qxd4 {[%emt 0:00:37]} exd5 {[%emt 0:00:21]} 7. Bg5 {[%emt 0:01:00]} Be7 {[%emt 0:00:24]} 8. e3 {[%emt 0:00:22]} O-O {[%emt 0:00:23]} 9. Be2 {[%emt 0:00:52]} Nc6 {[%emt 0:00:43]} 10. Qd3 {[%emt 0:00:23]} h6 {[%emt 0:01:01]} 11. Bh4 {[%emt 0:00:21]} Qb6 {[%emt 0:00:43]} 12. O-O {[%emt 0:00:22]} Rd8 {[%emt 0:00:21]} 13. Qb5 {[%emt 0:00:38]} Qxb5 {[%emt 0:01:29]} 14. Nxb5 {[%emt 0:00:38]} g5 {[%emt 0:00:33]} 15. Bg3 {[%emt 0:00:22]} Ne4 {[%emt 0:00:21]} 16. Rad1 {[%emt 0:01:23]} Be6 {[%emt 0:00:56]} 17. Nc7 {[%emt 0:02:01]} Rac8 {[%emt 0:00:25]} 18. Nxe6 {[%emt 0:00:20]} fxe6 {[%emt 0:00:20]} 19. Ne1 {[%emt 0:00:23]} Bf6 {[%emt 0:01:44]} 20. Nd3 {[%emt 0:00:44]} Kf7 {[%emt 0:00:42]} 21. f4 {[%emt 0:01:18]} Ke7 {[%emt 0:00:39]} 22. Be1 {[%emt 0:02:32]} b6 {[%emt 0:01:00]} 23. f5 {[%emt 0:00:59]} d4 {[%emt 0:01:18]} 24. exd4 {[%emt 0:02:18]} exf5 {[%emt 0:00:41]} 25. Bh5 {[%emt 0:04:21]} Ke6 {[%emt 0:01:38]} 26. Bg6 {[%emt 0:01:17]} Ne7 {[%emt 0:00:47]} 27. Bh5 {[%emt 0:00:35]} Bxd4+ {[%emt 0:00:30]} 28. Kh1 {[%emt 0:00:21]} Nd5 {[%emt 0:00:25]} 29. Bd2 {[%emt 0:00:37]} Ne3 {[%emt 0:01:08]} 30. Bxe3 {[%emt 0:00:30]} Bxe3 {[%emt 0:00:20]} 31. g3 {[%emt 0:01:25]} Rc2 {[%emt 0:03:21]} 32. Bg6 {[%emt 0:00:58]} Nd2 {[%emt 0:01:32]} 33. Bxf5+ {[%emt 0:01:26]} Kf6 {[%emt 0:00:23]} 34. Ne5 {[%emt 0:00:32]} Nxf1 {[%emt 0:00:39]} 35. Bxc2 {[%emt 0:00:23]} Nxg3+ {[%emt 0:01:03]} 36. hxg3 {[%emt 0:00:42]} Rxd1+ {[%emt 0:00:23]} 37. Bxd1 {[%emt 0:00:19]} Kxe5 {[%emt 0:00:20]} 38. Kg2 {[%emt 0:00:27]} Kd4 {[%emt 0:00:37]} 39. Bh5 {[%emt 0:00:41]} Bc1 {[%emt 0:00:33]} 40. b3 {[%emt 0:00:21]} b5 {[%emt 0:00:36]} 41. a4 {[%emt 0:30:25]} b4 {[%emt 0:30:24]} 42. g4 {[%emt 0:00:25]} a5 {[%emt 0:00:59]} 43. Bf7 {[%emt 0:00:25]} Ke3 {[%emt 0:00:24]} 44. Kh3 {[%emt 0:00:24]} Kf4 {[%emt 0:00:21]} 45. Bh5 {[%emt 0:00:22]} Bd2 {[%emt 0:00:26]} 46. Be8 {[%emt 0:00:22]} Bc1 {[%emt 0:00:20]} 47. Bh5 {[%emt 0:00:20]} Bd2 {[%emt 0:00:20]} 48. Be8 {[%emt 0:00:21]} Bc1 {[%emt 0:00:20]} 49. Bh5 {[%emt 0:00:21]} 1/2-1/2

[Event "FTX Road to Miami Prelims 2022"]
[Site "Online"]
[Date "2022.07.04"]
[Round "9.2"]
[White "Erigaisi Arjun"]
[Black "Duda, Jan-Krzysztof"]
[Result "0-1"]
[ECO "E11"]
[WhiteElo "2689"]
[BlackElo "2750"]
[Annotator "ChessBase"]
[PlyCount "138"]
[EventDate "2022.07.10"]
[EventType "tourn"]
[EventCountry "NET"]
[SourceTitle "playchess.com"]
[Source "ChessBase"]
[SourceQuality "1"]
[TimeControl "40/5400+30:1800+30"]

1. Nf3 {[%emt 1:15:40]} d5 {[%emt 1:15:40]} 2. d4 {[%emt 0:00:24]} Nf6 {[%emt 0:00:37]} 3. c4 {[%emt 0:00:21]} e6 {[%emt 0:00:23]} 4. g3 {[%emt 0:00:22]} Bb4+ {[%emt 0:00:21]} 5. Bd2 {[%emt 0:00:23]} a5 {[%emt 0:00:21]} 6. Bg2 {[%emt 0:00:35]} O-O {[%emt 0:00:24]} 7. a3 {[%emt 0:01:15]} Be7 {[%emt 0:00:23]} 8. Qc2 {[%emt 0:00:21]} c6 {[%emt 0:00:22]} 9. O-O {[%emt 0:00:27]} Nbd7 {[%emt 0:00:51]} 10. Bg5 {[%emt 0:01:10]} b6 {[%emt 0:01:37]} 11. Nbd2 {[%emt 0:00:30]} Ba6 {[%emt 0:00:23]} 12. Rac1 {[%emt 0:00:44]} Rc8 {[%emt 0:01:37]} 13. Rfd1 {[%emt 0:01:02]} h6 {[%emt 0:00:27]} 14. Bxf6 {[%emt 0:00:24]} Nxf6 {[%emt 0:00:20]} 15. e4 {[%emt 0:00:56]} Qd7 {[%emt 0:05:20]} 16. e5 {[%emt 0:01:53]} Nh7 {[%emt 0:00:22]} 17. c5 {[%emt 0:02:14]} Qb7 {[%emt 0:00:57]} 18. h4 {[%emt 0:00:55]} Rc7 {[%emt 0:00:45]} 19. b4 {[%emt 0:00:44]} axb4 {[%emt 0:00:41]} 20. axb4 {[%emt 0:00:20]} Rb8 {[%emt 0:00:29]} 21. Ra1 {[%emt 0:00:41]} Nf8 {[%emt 0:00:37]} 22. Bf1 {[%emt 0:00:56]} Bxf1 {[%emt 0:00:23]} 23. Nxf1 {[%emt 0:00:20]} Bd8 {[%emt 0:00:27]} 24. Ne3 {[%emt 0:00:35]} Qc8 {[%emt 0:00:35]} 25. Kg2 {[%emt 0:01:36]} Rcb7 {[%emt 0:00:58]} 26. Ra2 {[%emt 0:00:24]} Ng6 {[%emt 0:01:40]} 27. h5 {[%emt 0:02:33]} Ne7 {[%emt 0:01:04]} 28. g4 {[%emt 0:00:21]} bxc5 {[%emt 0:00:21]} 29. bxc5 {[%emt 0:00:20]} Rb3 {[%emt 0:00:52]} 30. Rd3 {[%emt 0:00:23]} R3b4 {[%emt 0:00:52]} 31. Rda3 {[%emt 0:00:38]} g5 {[%emt 0:00:32]} 32. Qd2 {[%emt 0:01:29]} Kg7 {[%emt 0:00:53]} 33. Qc3 {[%emt 0:01:25]} Qd7 {[%emt 0:00:40]} 34. Nc2 {[%emt 0:00:38]} R4b7 {[%emt 0:00:28]} 35. Nfe1 {[%emt 0:00:28]} Nc8 {[%emt 0:00:30]} 36. Ra8 {[%emt 0:01:08]} Rb3 {[%emt 0:00:32]} 37. Qa1 {[%emt 0:00:33]} Bc7 {[%emt 0:01:11]} 38. Qc1 {[%emt 0:01:30]} Rb1 {[%emt 0:00:45]} 39. Qd2 {[%emt 0:00:21]} R8b7 {[%emt 0:00:39]} 40. f4 {[%emt 0:01:13]} Bd8 {[%emt 0:01:06]} 41. Nf3 {[%emt 0:30:22]} gxf4 {[%emt 0:31:30]} 42. Qxf4 {[%emt 0:00:20]} R1b2 {[%emt 0:00:22]} 43. g5 {[%emt 0:01:05]} hxg5 {[%emt 0:00:21]} 44. Nxg5 {[%emt 0:00:20]} Rxa2 {[%emt 0:00:57]} 45. Rxa2 {[%emt 0:00:20]} Qe7 {[%emt 0:01:17]} 46. Ra3 {[%emt 0:01:11]} Qxg5+ {[%emt 0:00:39]} 47. Rg3 {[%emt 0:00:22]} Kh6 {[%emt 0:00:20]} 48. Rxg5 {[%emt 0:00:25]} Bxg5 {[%emt 0:00:20]} 49. Qf3 {[%emt 0:00:37]} Rb2 {[%emt 0:00:46]} 50. Qc3 {[%emt 0:00:44]} Rb8 {[%emt 0:00:39]} 51. Qa5 {[%emt 0:01:21]} Ne7 {[%emt 0:00:48]} 52. Nb4 {[%emt 0:00:35]} Kxh5 {[%emt 0:00:33]} 53. Qa4 {[%emt 0:00:21]} Nf5 {[%emt 0:00:41]} 54. Nxc6 {[%emt 0:00:52]} Rb2+ {[%emt 0:00:22]} 55. Kh3 {[%emt 0:00:22]} Bf4 {[%emt 0:00:36]} 56. Qd1+ {[%emt 0:00:21]} Kh6 {[%emt 0:00:21]} 57. Qg1 {[%emt 0:00:45]} Rb3+ {[%emt 0:00:30]} 58. Kg4 {[%emt 0:00:29]} Rg3+ {[%emt 0:00:22]} 59. Qxg3 {[%emt 0:00:23]} Bxg3 {[%emt 0:00:20]} 60. Nd8 {[%emt 0:00:21]} Kg7 {[%emt 0:00:25]} 61. c6 {[%emt 0:00:26]} Bf2 {[%emt 0:00:41]} 62. c7 {[%emt 0:00:23]} Ne7 {[%emt 0:00:21]} 63. Nc6 {[%emt 0:00:21]} Nc8 {[%emt 0:00:22]} 64. Kf3 {[%emt 0:00:21]} Bh4 {[%emt 0:00:29]} 65. Ke2 {[%emt 0:00:22]} Kf8 {[%emt 0:00:28]} 66. Kd2 {[%emt 0:00:23]} Ke8 {[%emt 0:00:21]} 67. Nb8 {[%emt 0:00:21]} Bf2 {[%emt 0:00:22]} 68. Kc3 {[%emt 0:00:22]} Be1+ {[%emt 0:00:22]} 69. Kb3 {[%emt 0:00:25]} Ba5 {[%emt 0:00:20]} 0-1

[Event "FTX Road to Miami Prelims 2022"]
[Site "Online"]
[Date "2022.07.04"]
[Round "9.3"]
[White "Ju, Wenjun"]
[Black "Dominguez Perez, Leinier"]
[Result "0-1"]
[ECO "D27"]
[WhiteElo "2560"]
[BlackElo "2754"]
[Annotator "ChessBase"]
[PlyCount "120"]
[EventDate "2022.07.10"]
[EventType "tourn"]
[EventCountry "NET"]
[SourceTitle "playchess.com"]
[Source "ChessBase"]
[SourceQuality "1"]
[TimeControl "40/5400+30:1800+30"]

1. d4 {[%emt 1:15:40]} d5 {[%emt 1:15:40]} 2. c4 {[%emt 0:00:22]} dxc4 {[%emt 0:00:23]} 3. Nf3 {[%emt 0:00:21]} Nf6 {[%emt 0:00:22]} 4. e3 {[%emt 0:00:21]} e6 {[%emt 0:00:20]} 5. Bxc4 {[%emt 0:00:23]} a6 {[%emt 0:00:21]} 6. O-O {[%emt 0:00:23]} c5 {[%emt 0:00:20]} 7. b3 {[%emt 0:00:26]} b5 {[%emt 0:00:26]} 8. Be2 {[%emt 0:00:21]} Nbd7 {[%emt 0:00:21]} 9. Bb2 {[%emt 0:00:36]} Bb7 {[%emt 0:00:22]} 10. a4 {[%emt 0:00:36]} b4 {[%emt 0:00:21]} 11. Nbd2 {[%emt 0:00:21]} Be7 {[%emt 0:00:22]} 12. Rc1 {[%emt 0:00:51]} Rc8 {[%emt 0:00:26]} 13. Nc4 {[%emt 0:00:25]} O-O {[%emt 0:00:27]} 14. Nfe5 {[%emt 0:01:24]} cxd4 {[%emt 0:00:23]} 15. Nxd7 {[%emt 0:01:59]} Nxd7 {[%emt 0:00:23]} 16. Bxd4 {[%emt 0:01:21]} a5 {[%emt 0:00:51]} 17. Qc2 {[%emt 0:02:50]} Bc5 {[%emt 0:01:38]} 18. Rfd1 {[%emt 0:01:20]} Qg5 {[%emt 0:01:08]} 19. Bf1 {[%emt 0:00:22]} Bxd4 {[%emt 0:01:20]} 20. h4 {[%emt 0:03:11]} Qe7 {[%emt 0:06:14]} 21. Rxd4 {[%emt 0:00:24]} e5 {[%emt 0:00:54]} 22. Rdd1 {[%emt 0:00:46]} Rc5 {[%emt 0:00:24]} 23. Qd2 {[%emt 0:02:34]} Bd5 {[%emt 0:01:17]} 24. e4 {[%emt 0:01:19]} Be6 {[%emt 0:00:22]} 25. Qg5 {[%emt 0:00:33]} Qxg5 {[%emt 0:00:58]} 26. hxg5 {[%emt 0:00:20]} Rfc8 {[%emt 0:00:22]} 27. Rd6 {[%emt 0:00:36]} Kf8 {[%emt 0:04:20]} 28. Rcd1 {[%emt 0:00:28]} Ke7 {[%emt 0:00:21]} 29. Ra6 {[%emt 0:00:41]} Nb8 {[%emt 0:00:22]} 30. Ra7+ {[%emt 0:01:12]} R8c7 {[%emt 0:00:32]} 31. Rxc7+ {[%emt 0:00:41]} Rxc7 {[%emt 0:00:23]} 32. Nxa5 {[%emt 0:00:21]} Rc3 {[%emt 0:00:21]} 33. Bc4 {[%emt 0:01:28]} Bxc4 {[%emt 0:00:27]} 34. Nxc4 {[%emt 0:00:42]} Rxb3 {[%emt 0:00:57]} 35. Nxe5 {[%emt 0:00:42]} Rc3 {[%emt 0:00:21]} 36. Rd5 {[%emt 0:00:41]} b3 {[%emt 0:00:53]} 37. Rb5 {[%emt 0:00:24]} Na6 {[%emt 0:00:21]} 38. a5 {[%emt 0:01:00]} Nc5 {[%emt 0:01:07]} 39. Nc6+ {[%emt 0:00:33]} Kd6 {[%emt 0:00:35]} 40. Nd4 {[%emt 0:00:21]} Rd3 {[%emt 0:01:20]} 41. Rb6+ {[%emt 0:31:26]} Kd7 {[%emt 0:30:27]} 42. Nf3 {[%emt 0:00:28]} Kc7 {[%emt 0:02:03]} 43. Ne5 {[%emt 0:00:28]} Rc3 {[%emt 0:00:28]} 44. Kh2 {[%emt 0:00:33]} Na4 {[%emt 0:00:23]} 45. Rb4 {[%emt 0:00:21]} Nc5 {[%emt 0:00:41]} 46. Nxf7 {[%emt 0:00:40]} Nd3 {[%emt 0:00:25]} 47. Rb5 {[%emt 0:00:23]} b2 {[%emt 0:00:21]} 48. a6 {[%emt 0:00:22]} Ra3 {[%emt 0:00:35]} 49. Rb7+ {[%emt 0:00:32]} Kc6 {[%emt 0:00:26]} 50. Nd8+ {[%emt 0:00:27]} Kd6 {[%emt 0:00:22]} 51. e5+ {[%emt 0:00:29]} Kxe5 {[%emt 0:00:25]} 52. a7 {[%emt 0:00:28]} Kd5 {[%emt 0:00:55]} 53. Rd7+ {[%emt 0:00:48]} Kc4 {[%emt 0:00:21]} 54. Rc7+ {[%emt 0:00:29]} Nc5 {[%emt 0:00:24]} 55. Ne6 {[%emt 0:00:33]} b1=Q {[%emt 0:00:29]} 56. Rxc5+ {[%emt 0:00:21]} Kb4 {[%emt 0:00:41]} 57. Rc8 {[%emt 0:00:34]} Qe4 {[%emt 0:00:22]} 58. Rb8+ {[%emt 0:00:24]} Kc3 {[%emt 0:00:24]} 59. Rc8+ {[%emt 0:00:29]} Kb2 {[%emt 0:00:26]} 60. Rb8+ {[%emt 0:00:33]} Ka2 {[%emt 0:00:33]} 0-1